Cogmind - Beta 16 @@@ ROGUE MODE // 2025.12.07 @ 01:56:12 Player: naththebg Result: Self-destructed Performance ------------- Evolutions (7) 3500 Regions Visited (20) 4000 Robots Destroyed (506) 2530 Value Destroyed (25404) 25404 Prototype IDs (44) 880 Alien Tech Used (0) 0 Bonus (19784) 19784 TOTAL SCORE: 56098 Bonus ------- High Alert Combat Kills 7154 Follower Combat Kills 7320 Entered Garrisons 1600 Used RIF Installer 4500 Friendly Fire -790 Cogmind --------- Core Integrity 994/1300 Matter 2/300 Energy 1340/1340 System Corruption 17% Temperature Cool (0) Movement Core (1900) Ox37 Location -3/Research Parts ------- > --- POWER (2) -------- Heavy Antimatter Reactor > --- PROPULSION (4) --- (None) > --- UTILITY (12) ----- Experimental Heat Sink Experimental Heat Sink Huge Storage Unit Advanced Energy Well Advanced Energy Well (fused) Relay Coupler [NC] (23) Relay Coupler [Grunt] (5) Relay Coupler [Sentry] (14) Relay Coupler [Hunter] (13) > --- WEAPON (3) ------- Hardcell Cannon > --- INVENTORY (25) --- Micro Antimatter Reactor Improved Heavy Treads Armored Huge Wheel Armored Huge Wheel Experimental Heat Sink Matter Compressor (250) Quantum Capacitor Advanced Thermal Defense Suite Relay Coupler [NC] (42) Relay Coupler [NC] (36) Relay Coupler [NC] (38) Relay Coupler [Sentry] (29) Relay Coupler [Sentry] (31) Relay Coupler [Sentry] (21) Relay Coupler [Demolisher] (26) Relay Coupler [Specialist] (20) Relay Coupler [Hunter] (16) Relay Coupler [Heavy] (20) Heavy Gatling Laser Heavy Gatling Laser Peak State ------------ > --- POWER ------------ Reinforced Fission Core Particle Reactor > --- PROPULSION ------- Improved Heavy Treads Armored Huge Wheel > --- UTILITY ---------- Advanced Heat Sink Experimental Heat Sink Experimental Heat Sink Huge Storage Unit Advanced Energy Well Advanced Energy Well Improved Medium Armor Plating Advanced Thermal Defense Suite Improved Remote Force Field Relay Coupler [Grunt] Relay Coupler [Sentry] Relay Coupler [Hunter] > --- WEAPON ----------- Heavy Gatling Laser Heavy Gatling Laser Long-range Phase Cannon > --- INVENTORY -------- Armored Huge Wheel Experimental Heat Sink Matter Compressor Quantum Capacitor Advanced Thermal Defense Suite Improved Remote Force Field Relay Coupler [NC] Relay Coupler [NC] Relay Coupler [NC] Relay Coupler [NC] Relay Coupler [Grunt] Relay Coupler [Sentry] Relay Coupler [Sentry] Relay Coupler [Sentry] Relay Coupler [Demolisher] Relay Coupler [Specialist] Relay Coupler [Hunter] Relay Coupler [Heavy] Heavy Gatling Laser Heavy Gatling Laser Mass Driver [Rating: 135] Favorites ----------- Power Improved Deuterium Engine Engine Improved Deuterium Engine Power Core Enhanced Fission Core Reactor Particle Reactor Propulsion Armored Huge Wheel Treads Armored Treads Leg Flexi-carbon Leg Wheel Armored Huge Wheel Utility Huge Storage Unit Device Advanced Thermal Defense Suite Storage Huge Storage Unit Processor Visual Processing Unit Hackware Relay Coupler [Grunt] Protection Improved Utility Shielding Weapon Remote Datajack Energy Gun Precision Beam Rifle Energy Cannon Heavy Particle Cannon Ballistic Gun Assault Rifle Ballistic Cannon Heavy Linear Accelerator Launcher Improved Grenade Launcher Special Weapon Remote Datajack Slashing Weapon Vibroblade Build | -11 -10 -10 -10 -8 -8 -8 -8 -7 -7 -7 -7 -6 -6 -6 -6 -5 -5 -4 -4 -3 ------- Run | Yrd Mat Min Sub Mat Gar Mat Gar Fac Gar Fac Gar Fac Gar Fac Gar Fac Gar Fac Gar Res Slots Evolved 14 | . . . . 4 . . . 2 . . . 2 . . . 2 . 2 . 2 Power 1 | . . . . . . . . . . . . . . . . . . . . 1 Propulsion 2 | . . . . 1 . . . . . . . . . . . . . 1 . . Utility 10 | . . . . 2 . . . 2 . . . 2 . . . 2 . 1 . 1 Weapon 1 | . . . . 1 . . . . . . . . . . . . . . . . Parts Attached 283 | 4 4 7 5 37 2 11 1 30 17 21 6 17 9 5 8 7 22 27 19 24 Power 23 | 1 . 1 . 2 . 1 . 3 1 2 . . 2 . . 1 1 . 1 7 Engine 7 | 1 . 1 . 2 . 1 . 2 . . . . . . . . . . . . Core 8 | . . . . . . . . 1 . 1 . . 2 . . 1 1 . 1 1 Reactor 8 | . . . . . . . . . 1 1 . . . . . . . . . 6 Propulsion 64 | 2 1 4 1 9 1 . . 5 4 3 . 2 . . . 2 5 13 7 5 Treads 21 | . . 2 1 9 1 . . 4 1 . . . . . . . . 2 . 1 Leg 10 | . 1 . . . . . . . 1 1 . . . . . . 5 1 . 1 Wheel 33 | 2 . 2 . . . . . 1 2 2 . 2 . . . 2 . 10 7 3 Hover . | . . . . . . . . . . . . . . . . . . . . . Flight . | . . . . . . . . . . . . . . . . . . . . . Utility 130 | 1 1 2 . 10 1 5 1 14 9 13 6 13 6 3 8 3 11 6 9 8 Device 41 | . 1 1 . 5 1 . 1 7 2 6 . 2 . 1 . 1 2 4 4 3 Storage 7 | 1 . 1 . 1 . 1 . 1 . . . . . . . . . 2 . . Processor 3 | . . . . 1 . 1 . 1 . . . . . . . . . . . . Hackware 47 | . . . . 1 . 1 . 2 3 6 5 5 5 1 5 1 8 . 2 2 Protection 32 | . . . . 2 . 2 . 3 4 1 1 6 1 1 3 1 1 . 3 3 Artifact . | . . . . . . . . . . . . . . . . . . . . . Weapon 66 | . 2 . 4 16 . 5 . 8 3 3 . 2 1 2 . 1 5 8 2 4 Energy Gun 19 | . 1 . 1 6 . 4 . 1 . 1 . . . . . . . 2 2 1 Energy Cannon 9 | . . . . 2 . . . 5 . 1 . . . . . . . 1 . . Ballistic Gun 6 | . 1 . 1 1 . . . . . . . . . . . . 1 2 . . Ballistic Cannon 12 | . . . . 2 . . . . 1 . . 1 1 . . 1 3 2 . 1 Launcher 10 | . . . 2 5 . . . 1 1 . . 1 . . . . . . . . Special Weapon 9 | . . . . . . 1 . 1 1 . . . . 2 . . 1 1 . 2 Impact Weapon . | . . . . . . . . . . . . . . . . . . . . . Slashing Weapon 1 | . . . . . . . . . . 1 . . . . . . . . . . Piercing Weapon . | . . . . . . . . . . . . . . . . . . . . . Special Melee Weapon . | . . . . . . . . . . . . . . . . . . . . . Unidentified Prototypes 22 | . . 1 . 7 . . . . . 8 . . . . . . . 2 . 4 Corrupted Parts 3 | . . . . . . . . . . . . . . . . . 2 1 . . System Corruption 18 | . . . . . . . . . . . . . . . . . 8 10 . . Parts Lost 87 | . 1 2 3 2 1 . . 7 2 6 1 2 . . . 5 10 17 11 17 Power 7 | . . . . . . . . 1 . 1 . . . . . . 1 . 1 3 Propulsion 26 | . 1 1 1 . . . . 1 2 1 . 1 . . . 2 4 7 5 . Utility 34 | . . . 1 2 1 . . 5 . 3 1 1 . . . 1 1 6 3 9 Weapon 20 | . . 1 1 . . . . . . 1 . . . . . 2 4 4 2 5 Highest Loss Streak 11 | . 1 2 2 1 1 . . 3 1 5 1 1 . . . 1 4 11 8 3 To Critical Strikes 1 | . . . . . . . . . . . . . . . . . . . . 1 Average Backups 18 | 4 6 10 12 14 14 14 15 14 19 18 19 20 20 20 20 18 23 21 20 20 Power . | . 1 1 2 1 1 . . . . 1 1 1 1 . 1 1 . 1 . . Propulsion 1 | 2 4 3 4 3 2 1 2 1 1 1 1 1 2 2 2 1 . . 1 1 Utility 10 | . . 1 2 3 5 7 7 5 10 11 13 13 13 13 12 11 18 17 14 16 Weapon 4 | 1 1 2 3 6 4 4 4 5 6 4 4 4 3 3 3 3 2 2 3 2 Tool/Special . | . . . . . . . . . . . . . . . . . . . . . Unused Backups 47 | . 1 . . 6 1 1 1 3 11 . 2 . 3 . . . 2 . 3 13 Power 3 | . . . . 1 . . . . 1 . . . . . . . . . . 1 Propulsion 7 | . . . . 3 1 1 . 1 . . . . . . . . . . 1 . Utility 29 | . . . . . . . 1 2 6 . 2 . 3 . . . 2 . 1 12 Weapon 8 | . 1 . . 2 . . . . 4 . . . . . . . . . 1 . Tool/Special . | . . . . . . . . . . . . . . . . . . . . . Average Slot Usage (%) 87 | . 83 87 94 94 99 100 99 97 86 78 83 80 79 79 79 79 84 81 88 79 Engine 3 | . 14 14 14 9 9 9 9 5 1 . . . . . . . . . . . Core 3 | . . . . . . . . 1 . 3 7 6 6 6 6 5 4 5 5 3 Treads 9 | . . 23 27 26 27 27 27 22 3 2 . . . . . . . 1 3 . Leg 1 | . . 1 . . . . . . . . . . . . . . 12 7 . . Wheel 6 | . 25 2 . . . . . . 8 11 15 12 13 12 13 11 1 9 9 8 Device 9 | . . 14 11 11 8 9 9 10 7 11 7 8 6 6 6 9 9 7 19 15 Storage 8 | . 14 14 14 9 9 9 9 7 7 7 7 6 6 6 6 5 5 6 15 14 Processor 1 | . . . . 8 9 2 . . . . . . . . . . . . . . Hackware 14 | . . . . . . 6 9 14 17 13 14 16 19 25 22 21 27 22 14 13 Protection 8 | . . . . 2 9 9 9 10 9 6 14 14 13 6 9 11 7 5 4 4 Energy Gun 5 | . 13 2 3 10 22 26 26 12 . . . . . . . . . 1 9 4 Energy Cannon 2 | . . . . 13 . . . 8 12 . . . . . . . . . 3 3 Ballistic Gun 1 | . 14 14 11 . . . . . . . . . . . . . . 6 . . Ballistic Cannon 3 | . . . . 1 . . . . 1 7 6 6 5 6 5 5 7 2 . 2 Special Weapon 3 | . . . . . . . . 1 7 6 7 5 5 5 4 4 4 4 . 1 Peak Build Rating 135 | 4 7 14 12 39 39 41 37 50 63 75 70 85 86 81 83 89 92 93 117 135 Average Rating 63 | 3 5 7 9 29 37 38 36 45 56 65 68 79 80 78 81 86 78 80 104 123 On Entrance 53 | . 4 7 8 9 39 39 36 36 42 63 67 70 85 80 80 82 85 84 93 109 Avg Prop Armor Cover (%) 6 | 6 9 9 . . . . . 16 5 4 . . . . . . 5 5 6 7 Naked Turns . | . . . . . . . . . . . . . . . . . . . . . Heaviest Build 214 | 10 14 29 32 52 50 58 57 69 144 144 142 156 159 157 154 150 149 148 151 214 Greatest Support 76 | 26 26 40 40 62 60 60 60 76 38 38 38 44 40 40 40 40 55 55 56 56 Greatest Overweight (x) 44 | 1 . 2 1 . . . . 5 5 13 3 5 3 12 3 3 5 44 6 6 Average Overweight (x) 2 | . . . . . . . . . 3 3 3 3 3 3 3 3 2 2 3 3 Largest Inventory Capacity 25 | 8 8 15 15 15 15 15 15 25 25 25 25 25 25 25 25 25 25 25 25 25 Average Capacity 21 | 7 8 14 15 15 15 15 15 15 23 25 25 25 25 25 25 25 25 25 25 25 Most Carried 25 | 8 8 11 15 15 15 15 15 15 25 25 25 25 25 25 25 25 25 25 25 25 Average Carried 20 | 4 6 10 12 14 14 14 14 14 22 22 23 24 24 24 24 22 23 21 22 23 Final Capacity 25 | 8 8 15 15 15 15 15 15 15 25 25 25 25 25 25 25 25 25 25 25 25 Final Carried 25 | 8 8 11 14 15 15 15 15 15 25 20 25 25 25 25 24 15 25 23 25 24 Class Distribution -------------------- 49% | Botlord-Tank 17% | Bothacker-Tank 9% | Tank 7% | Mutant 4% | Scavenger-Tank 3% | Botlord-Mutant 3% | Skirmisher Dominant Class ---------------- Mutant | -10/Materials Mutant | -10/Mines Mutant | -10/Subcaves Skirmisher | -8/Materials Tank | -8/Garrison Bothacker-Tank | -8/Materials Bothacker-Tank | -8/Garrison Bothacker-Tank | -7/Factory Botlord-Tank | -7/Garrison Botlord-Tank | -7/Factory Botlord-Tank | -7/Garrison Botlord-Tank | -6/Factory Botlord-Tank | -6/Garrison Botlord-Tank | -6/Factory Botlord-Tank | -6/Garrison Botlord-Tank | -5/Factory Botlord-Tank | -5/Garrison Botlord-Tank | -4/Factory Scavenger-Tank | -4/Garrison Botlord-Tank | -3/Research Resources | -11 -10 -10 -10 -8 -8 -8 -8 -7 -7 -7 -7 -6 -6 -6 -6 -5 -5 -4 -4 -3 ----------- Run | Yrd Mat Min Sub Mat Gar Mat Gar Fac Gar Fac Gar Fac Gar Fac Gar Fac Gar Fac Gar Res Matter Collected 15090 | 222 133 181 231 708 402 135 97 733 523 1224 823 986 1349 390 1147 1488 1450 1451 475 942 Remotely . | . . . . . . . . . . . . . . . . . . . . . Salvage Created 18625 | . 357 174 170 2123 891 1123 720 2855 1366 487 206 615 354 267 570 741 873 1631 1899 1203 Parts 872 | . 17 12 9 125 45 40 32 140 45 28 15 37 27 24 19 36 32 66 59 64 Haulers Intercepted 18 | . 1 . . 6 . 6 . 4 . . . . . . . . . 1 . . Recyclers Shooed 17 | . . . . . . 2 . 2 . 2 . 2 . . . 1 . 6 . 2 Parts Field Recycled . | . . . . . . . . . . . . . . . . . . . . . Retrieved Matter . | . . . . . . . . . . . . . . . . . . . . . Parts Self-Destructed 6 | . . . 6 . . . . . . . . . . . . . . . . . Prevented . | . . . . . . . . . . . . . . . . . . . . . Parts Restored . | . . . . . . . . . . . . . . . . . . . . . Kills | -11 -10 -10 -10 -8 -8 -8 -8 -7 -7 -7 -7 -6 -6 -6 -6 -5 -5 -4 -4 -3 ------- Run | Yrd Mat Min Sub Mat Gar Mat Gar Fac Gar Fac Gar Fac Gar Fac Gar Fac Gar Fac Gar Res Combat Hostiles Destroyed 373 | . 4 2 9 37 30 5 19 54 20 16 8 13 23 11 18 18 24 11 25 26 Melee 5 | . . . . . 1 . . 1 . . . . 2 . . . . . 1 . Guns 106 | . 4 2 3 16 10 4 13 18 . . . . . . . . . 5 23 8 Cannons 152 | . . . . 10 . . . 20 18 16 8 9 8 4 8 17 14 3 1 16 AOE 97 | . . . 6 9 15 . 5 12 2 . . 4 13 7 10 1 10 3 . . Classes Destroyed 22 | . 5 1 2 8 1 . . . . . . 2 1 . . 1 . . . 1 Worker 29 | . . . . 3 . 2 . 4 . 4 . 2 . 3 . 2 . 8 . 1 Builder 22 | . . . . 3 . 1 . 6 . 1 . . . 3 . 3 . 3 . 2 Tunneler 6 | . . 1 . 1 . . . 1 . . . . . 1 . . . 2 . . Hauler 18 | . 1 . . 6 . 6 . 4 . . . . . . . . . 1 . . Recycler 26 | . 1 1 . 2 . 7 . 4 . 2 . 1 . . . 1 . 7 . . Mechanic 2 | . . . . . . . . . . . . 1 . . . . . 1 . . Operator 4 | . 1 . . 1 . . . . . . . 1 . . 1 . . . . . Drone 1 | . . . . . . . . . . . . . . . . . . . . 1 Watcher 19 | . 1 . . 4 . 1 . 6 . 2 . 2 . . . 1 1 1 . . Swarmer 105 | . . . 3 7 13 . 11 19 6 . 1 4 13 8 5 . 4 . 10 1 Saboteur 4 | . . . . . . . . . . . . . 3 . . . . . . 1 Grunt 122 | . 4 2 3 15 6 2 4 23 3 4 3 2 6 2 7 6 9 3 10 8 Brawler 13 | . . . . . 3 . . 3 2 . 1 1 . . 2 . 1 . . . Duelist 7 | . . . . 2 1 . . 2 . . . 1 . . . 1 . . . . Sentry 29 | . . . . 5 6 2 2 2 4 1 1 1 1 . 1 1 1 1 . . Demolisher 2 | . . . . . . . . . . . . . . . . 2 . . . . Specialist 5 | . . . . 2 . . . . . 3 . . . . . . . . . . Hunter 22 | . . . . 4 1 1 . . 1 2 . . . . . 2 3 3 . 5 Programmer 53 | . . . . 1 . . 2 5 4 6 3 2 . 1 3 3 5 4 4 10 Heavy 4 | . . . . 1 . . . . . . . 1 . . . 2 . . . . Behemoth 6 | . . . . . . . . . . . . 1 . . 2 1 1 . 1 . Subdweller 4 | . . . 4 . . . . . . . . . . . . . . . . . Thug 1 | . . . . . . . . . . . . 1 . . . . . . . . Guerrilla 1 | . . . . . . . . . . . . . . . 1 . . . . . Infiltrator 1 | . . . . . . . . . . . . . . . . 1 . . . . Best Kill Streak 16 | . 4 1 3 7 7 3 7 16 3 5 3 5 8 5 5 7 9 8 8 7 Combat Bots Only 9 | . 2 1 3 4 7 1 7 9 3 4 3 4 8 3 5 3 9 3 8 6 Max Kills in Single Turn 7 | . 1 1 2 3 3 2 4 4 2 1 1 2 3 3 6 1 5 7 2 2 Gunslinging 1 | . . . . . . . 1 1 . . . . . . . . . . 1 . Exploded 5 | . . . 2 2 3 . 4 3 2 . . 2 3 3 3 1 5 2 . . Melee 1 | . . . . . 1 . . 1 . . . . 1 . . . . . 1 . Uniques/NPCs Destroyed . | . . . . . . . . . . . . . . . . . . . . . Combat | -11 -10 -10 -10 -8 -8 -8 -8 -7 -7 -7 -7 -6 -6 -6 -6 -5 -5 -4 -4 -3 -------- Run | Yrd Mat Min Sub Mat Gar Mat Gar Fac Gar Fac Gar Fac Gar Fac Gar Fac Gar Fac Gar Res Hostile Shots Fired 2360 | . 30 14 39 144 55 27 56 274 150 171 79 60 135 26 73 138 128 150 166 445 Missed 692 | . 8 4 14 36 15 8 16 77 46 58 24 21 42 8 30 39 33 46 54 113 Hits 1668 | . 22 10 25 108 40 19 40 197 104 113 55 39 93 18 43 99 95 104 112 332 Melee 10 | . . . . . 3 . . 3 . . . 1 2 . . . . . . 1 Projectile 1658 | . 22 10 25 108 37 19 40 194 104 113 55 38 91 18 43 99 95 104 112 331 AOE 6 | . . . 1 . . . . . . . . . . . . 3 . . . 2 Critical Strikes 92 | . . . 1 2 2 . 3 4 1 2 . 2 2 . 2 4 10 10 6 41 Actively Blocked 1 | . . . . . . . . . . . . . . . . . 1 . . . Part Disruptions 4 | . . . . . . . . . 1 . . . . . . . 1 1 . 1 Damage Taken 26813 | . 268 145 441 1719 700 208 383 2909 1178 1434 539 933 804 209 771 2116 2101 2178 2079 5698 Core 2892 | . 86 25 74 231 82 . 66 314 101 198 54 112 79 22 32 265 302 344 199 306 Absorbed by Shields 2301 | . . . . . . . . 113 6 35 . 19 385 114 271 242 20 . 134 962 Redirected to Shielding 184 | . . . . . . . . . . . . 56 25 . . 3 78 22 . . Ignored by Resistances 2722 | . . . . . . 63 72 63 65 122 68 78 191 30 157 649 273 284 146 461 Regen/Repaired (Parts) 2164 | . . . . . . . . 377 . 252 229 189 . 349 . . . 19 . 749 Core Remaining (%) 46 | 100 . . 26 . . . 31 . . . 4 . . . 71 . 43 . 52 . Volleys Fired 1682 | . 33 21 27 100 78 46 35 151 120 95 54 77 108 23 86 124 93 99 178 134 Largest 3 | . 2 2 2 3 3 3 3 3 2 1 1 1 2 1 1 1 2 3 3 3 Hottest 305 | . 60 60 90 204 183 183 183 202 180 70 70 70 113 70 70 70 94 200 305 305 Shots Fired 2610 | . 65 23 34 266 159 126 97 359 194 95 57 77 109 24 86 124 101 166 238 210 Gun 952 | . 65 23 15 111 136 123 95 147 . . . . . . . . 3 89 94 51 Cannon 1287 | . . . . 146 . . . 189 173 73 39 53 61 14 47 93 65 55 138 141 Launcher 102 | . . . 19 9 23 . 2 9 1 . . 2 17 4 11 . 5 . . . Special 269 | . . . . . . 3 . 14 20 22 18 22 31 6 28 31 28 22 6 18 Kinetic 752 | . 33 21 3 19 . . . . 13 73 39 53 61 14 47 93 68 130 . 85 Thermal 1494 | . 32 2 12 245 136 123 95 336 160 . . . . . . . . 14 232 107 Explosive 95 | . . . 19 2 23 . 2 9 1 . . 2 17 4 11 . 5 . . . Electromagnetic . | . . . . . . . . . . . . . . . . . . . . . Robot Hit Streak 37 | . 7 4 6 17 20 15 25 36 35 21 13 8 29 31 10 12 15 10 37 8 Robot Miss Streak 7 | . 3 2 2 4 4 3 3 3 4 3 2 4 4 2 2 2 3 4 4 7 Penetration Max 2 | . . . . . . . . . . . . . . . . 1 1 2 . 1 Secondary Targets 18 | . 1 . . . 3 . 6 4 . . . . . . . . . . 4 . Max Gunslinging Chain 2 | . 1 . . . 1 . 2 1 . . . . . . . . . . 1 . Shots Hit Robots 1603 | . 40 15 22 150 65 84 67 227 117 72 38 43 64 14 50 88 61 101 161 124 Core Hits 828 | . 16 8 13 83 38 26 29 121 46 18 8 32 22 28 56 24 59 52 85 64 Critical Kills 3 | . . . . . . . . . . . . . . . . . . 1 1 1 Critical Parts Destroyed . | . . . . . . . . . . . . . . . . . . . . . Critical Strikes 72 | . . . . 8 5 5 6 3 . 6 1 1 4 . 3 12 3 5 1 9 Burn 27 | . . . . 8 5 5 6 3 . . . . . . . . . . . . Meltdown 2 | . . . . . . . . . . . . . . . . . . . 1 1 Destroy 1 | . . . . . . . . . . . . . . . . . . 1 . . Blast 42 | . . . . . . . . . . 6 1 1 4 . 3 12 3 4 . 8 Melee Attacks . | . . . . . . . . . . . . . . . . . . . . . Impact . | . . . . . . . . . . . . . . . . . . . . . Slashing . | . . . . . . . . . . . . . . . . . . . . . Piercing . | . . . . . . . . . . . . . . . . . . . . . Sneak Attacks . | . . . . . . . . . . . . . . . . . . . . . Combat Hostiles . | . . . . . . . . . . . . . . . . . . . . . Follow-up Attacks . | . . . . . . . . . . . . . . . . . . . . . Damage Inflicted 63939 | . 499 207 942 4240 2430 1588 1598 6839 3393 4157 1875 2907 3818 1981 3137 5085 3884 4653 6124 4582 Guns 14242 | . 499 188 181 1490 1161 1562 1216 2091 . . . . . . . . 20 1704 2980 1150 Cannons 36263 | . . . . 1890 . . . 2834 3211 4157 1875 2199 2529 838 1541 5074 2339 1305 3070 3401 Explosions 13245 | . . . 761 860 1266 . 382 1904 182 . . 708 1278 1143 1596 . 1521 1644 . . Melee . | . . . . . . . . . . . . . . . . . . . . . Ramming 189 | . . 19 . . 3 26 . 10 . . . . 11 . . 11 4 . 74 31 Kinetic 26913 | . 283 167 12 729 . . . . 500 4157 1875 2199 2529 838 1541 5074 2359 2571 . 2079 Thermal 26283 | . 216 21 169 3264 1161 1562 1216 5194 2711 . . . . 363 . . . 1884 6050 2472 Explosive 9997 | . . . 761 247 1266 . 382 1635 182 . . 461 1278 470 1596 . 1521 198 . . Electromagnetic 557 | . . . . . . . . . . . . 247 . 310 . . . . . . Impact . | . . . . . . . . . . . . . . . . . . . . . Slashing . | . . . . . . . . . . . . . . . . . . . . . Piercing . | . . . . . . . . . . . . . . . . . . . . . Highest Corruption 20 | . . . . . . . 1 1 2 2 4 . 1 1 3 1 16 18 20 17 Average Corruption 6 | . . . . . . . 1 1 1 1 3 . 1 1 1 1 6 15 19 9 Corruption Purged 15 | . . . . . . . . 2 . 2 . . . 1 . . 10 . . . Corruption Blocked . | . . . . . . . . . . . . . . . . . . . . . Effects 335 | . . . . . . . 4 8 4 1 38 . 7 5 9 2 78 48 105 26 Message Errors 73 | . . . . . . . . 1 2 . 5 . 1 1 1 1 23 11 22 5 Matter Fused 77 | . . . . . . . 2 1 1 1 10 . . 1 3 . 17 9 25 7 Heat Flow Errors 27 | . . . . . . . . 1 1 . 2 . 1 . 1 . 7 2 9 3 Energy Discharges 42 | . . . . . . . . . . . 5 . 4 1 3 1 10 7 10 1 Parts Rejected 4 | . . . . . . . . . . . 1 . . . . . 1 1 . 1 Parts Fused 6 | . . . . . . . . . . . 1 . . . . . 2 . 2 1 Data Loss (minor) 45 | . . . . . . . . 5 . . 6 . 1 . . . 9 6 15 3 Data Loss (major) 21 | . . . . . . . 1 . . . 4 . . 1 . . 5 5 5 . Misfires 15 | . . . . . . . . . . . 3 . . 1 . . 1 . 6 4 Alerts 7 | . . . . . . . . . . . 1 . . . 1 . 2 1 2 . Weapon Failures 18 | . . . . . . . 1 . . . . . . . . . 1 6 9 1 Overload Shots 8 | . . . . . . . . 2 6 . . . . . . . . . . . Overflow Damage 3927 | . . . 1 108 42 . . 234 235 771 312 340 370 252 144 450 377 181 29 81 Projectiles 3198 | . . . . 58 . . . 73 235 771 312 213 300 158 105 450 370 43 29 81 Explosions 729 | . . . 1 50 42 . . 161 . . . 127 70 94 39 . 7 138 . . Melee . | . . . . . . . . . . . . . . . . . . . . . Knockbacks 106 | . . . . 3 . 1 . . 1 19 6 6 10 2 5 25 7 4 . 17 Impact 2 | . . . . . . 1 . . . . . . . . . . . . . 1 Kinetic 91 | . . . . 3 . . . . 1 16 6 5 8 2 4 21 7 4 . 14 Secondary 13 | . . . . . . . . . . 3 . 1 2 . 1 4 . . . 2 Self-Inflicted Damage 1073 | . . . 105 72 155 . 10 45 . . . 74 5 40 235 5 275 . 37 15 Shots 43 | . . . 6 2 6 . 1 1 . . . 1 . 1 10 . 15 . . . Rammed 9 | . . 3 . . . 1 . 1 . . . . 1 . . 1 . . 1 1 Targets Rammed 14 | . . 3 . . 1 3 . 2 . . . . 1 . . 1 1 . 1 1 Kicked 1 | . . . . . . . . . . . . . . . . . 1 . . . Crushed 4 | . . . . . 1 2 . 1 . . . . . . . . . . . . Highest Temperature 525 | . 78 . 8 338 270 312 304 336 144 214 233 108 214 64 112 187 252 134 525 318 Average Temperature 68 | . 40 . 8 94 78 86 92 105 27 50 55 26 53 23 23 41 45 55 79 102 Received Heat Transfer 5870 | . 150 78 96 477 81 54 99 926 235 396 108 126 140 8 100 394 441 177 811 973 Effects 5 | . . . . . . . . 2 . . . . . . . . . . 1 2 Interference 3 | . . . . . . . . 1 . . . . . . . . . . . 2 Matter Decay 1 | . . . . . . . . 1 . . . . . . . . . . . . Damage (minor) 1 | . . . . . . . . . . . . . . . . . . . 1 . Siege Activations . | . . . . . . . . . . . . . . . . . . . . . Martial Activations . | . . . . . . . . . . . . . . . . . . . . . Shielding Activations . | . . . . . . . . . . . . . . . . . . . . . Robots Disrupted 2 | . . . . . . . . . . . . 2 . . . . . . . . Combat Hostiles 2 | . . . . . . . . . . . . 2 . . . . . . . . Robots Corrupted 3 | . . . . . . . . . . 1 . . . . . 2 . . . . Combat Hostiles . | . . . . . . . . . . . . . . . . . . . . . Parts Fried 12 | . . . . . . . . . . 3 . 2 . 1 1 5 . . . . Impact Corruptions 4 | . . . . . . . . . . 2 . . . . . 2 . . . . Robots Melted 16 | . . . . 2 4 1 2 3 1 . . . . . . . . . 1 2 Combat Hostiles 13 | . . . . 2 4 1 1 3 . . . . . . . . . . . 2 Parts Melted 97 | . . . . 14 11 10 12 22 6 2 . . 1 1 . . 2 2 9 5 Heat Transferred 39910 | . 500 50 200 6032 2738 3626 2886 8634 3539 . . . . 300 . . . 1500 6846 3059 Parts Sabotaged . | . . . . . . . . . . . . . . . . . . . . . Parts Stolen . | . . . . . . . . . . . . . . . . . . . . . Parts Stripped . | . . . . . . . . . . . . . . . . . . . . . Power Chain Reactions 1 | . . . . . . . . . . . . 1 . . . . . . . . Alert | -11 -10 -10 -10 -8 -8 -8 -8 -7 -7 -7 -7 -6 -6 -6 -6 -5 -5 -4 -4 -3 ------- Run | Yrd Mat Min Sub Mat Gar Mat Gar Fac Gar Fac Gar Fac Gar Fac Gar Fac Gar Fac Gar Res Maximum Alert Level 5 | . . . . 3 5 4 3 3 5 3 3 2 4 3 5 4 5 4 4 3 Low Security (%) 9 | 100 100 100 . 21 . . . . . 43 . 6 . . . . . . . . Level 1 8 | . . . . 50 . . . . . 35 13 23 . . . . . . . . Level 2 22 | . . . . 25 22 . 25 88 . 12 46 69 20 29 2 . . . . . Level 3 32 | . . . . 1 24 99 74 10 43 8 40 . 54 70 36 50 7 91 24 99 Level 4 20 | . . . . . 31 . . . 47 . . . 25 . 38 49 57 8 75 . Level 5 6 | . . . . . 21 . . . 8 . . . . . 22 . 34 . . . High Security . | . . . . . . . . . . . . . . . . . . . . . Max Security . | . . . . . . . . . . . . . . . . . . . . . Peak Influence 2064 | . 55 40 . 718 1956 1102 1086 1016 1613 846 853 677 1395 938 1713 1508 2064 1232 1528 859 Initial 1083 | . . 19 . 58 464 953 569 569 702 846 252 447 411 732 653 898 1003 1083 766 859 Average 824 | . 15 3 . 329 1170 936 868 556 1168 291 620 471 961 733 1219 1119 1468 978 1206 767 Influence Increases 18498 | . 134 75 215 1454 1582 615 547 1359 971 940 681 1387 1124 834 1200 1320 1301 1043 1032 684 Destroy 0b10 Robot/C 7979 | . 80 40 100 740 680 300 360 855 405 435 264 384 456 264 480 552 432 288 468 396 Destroy 0b10 Robot/NC 624 | . 20 10 . 100 . 90 8 100 20 48 . 33 3 42 3 33 3 72 24 15 Destroy Leader 1312 | . 24 10 10 230 20 106 38 170 32 132 32 92 24 78 24 86 24 70 42 68 Allied During Kill 2360 | . . . . . 38 81 . 6 43 134 102 272 145 250 330 451 106 178 161 63 Successful Hack 194 | . 10 . . 22 7 6 24 25 17 5 . 42 . 15 13 . . 8 . . Disable Machine 1260 | . . . . 240 . 30 . 84 . 96 . 432 . 108 . 63 . 180 9 18 Anti-Garrison Action 2442 | . . . . . 550 . 88 . 340 . 204 . 300 . 180 . 570 . 210 . Destroy Structure 1853 | . . . . 77 272 2 29 71 78 78 25 132 187 68 161 90 148 238 109 88 Partial Spotted 9 | . . . . . . . . . . . . . . . . 9 . . . . Lose Combat Pursuer 465 | . . 15 105 45 15 . . 48 36 12 54 . 9 9 9 36 18 9 9 36 Influence Decreases 17743 | . 84 125 102 853 340 1695 337 1442 361 2192 189 1652 317 1295 421 1599 671 2012 599 1457 Entered New Map 8092 | . . 31 . 55 250 1003 307 517 301 767 109 406 177 663 281 815 431 981 329 669 Time Decay 5297 | . 80 94 72 628 . 502 . 695 . 650 . 646 . 482 . 464 . 506 . 478 Lost Part 844 | . 4 . 30 20 10 . . 70 20 60 10 20 . . . 50 100 170 110 170 Lost Ally 1760 | . . . . . 80 40 30 10 40 140 70 280 140 . 140 270 140 80 160 140 Purge Threat 1750 | . . . . 150 . 150 . 150 . 575 . 300 . 150 . . . 275 . . Squads Dispatched 82 | . 1 . . 8 . 2 . 17 . 6 . 6 . 5 . 14 . 11 . 12 Investigation 5 | . . . . . . . . 2 . . . . . 1 . 1 . . . 1 Extermination 21 | . . . . . . . . 6 . 3 . 3 . 2 . 2 . 2 . 3 Reinforcement 35 | . 1 . . 6 . 2 . 3 . 3 . 3 . 1 . 7 . 3 . 6 Assault 10 | . . . . . . . . 2 . . . . . . . 4 . 2 . 2 Garrison 11 | . . . . 2 . . . 4 . . . . . 1 . . . 4 . . Intercept . | . . . . . . . . . . . . . . . . . . . . . Searches Triggered . | . . . . . . . . . . . . . . . . . . . . . Unchained Authorized 3 | . . . . . . . . . . . . . . 1 . 1 . . . 1 Construction Impeded 8 | . . . . . . 1 . 1 . . . . . . . 3 . 1 . 2 Haulers Reinforced 4 | . . . . . . . . 1 . . . . . . . 1 . 1 . 1 Active Scanning Responses . | . . . . . . . . . . . . . . . . . . . . . Cargo Convoy Interrupts 2 | . . . . . . . . . . 1 . 1 . . . . . . . . Stealth | -11 -10 -10 -10 -8 -8 -8 -8 -7 -7 -7 -7 -6 -6 -6 -6 -5 -5 -4 -4 -3 --------- Run | Yrd Mat Min Sub Mat Gar Mat Gar Fac Gar Fac Gar Fac Gar Fac Gar Fac Gar Fac Gar Res Distress Signals 22 | . 1 . . 3 . 2 . 3 . 1 . 2 . 1 . 6 1 1 . 1 Communications Jammed . | . . . . . . . . . . . . . . . . . . . . . Distress Signals . | . . . . . . . . . . . . . . . . . . . . . Times Spotted 738 | . 9 3 13 49 33 16 20 88 31 37 26 48 46 25 46 64 53 36 44 51 Peak Tracking Total 12 | . 3 2 4 8 7 3 6 5 4 9 7 5 11 4 12 9 9 6 9 7 Tactical Retreats 31 | . . 1 3 3 1 . . 4 3 1 3 . 1 1 1 3 2 1 1 2 Traps | -11 -10 -10 -10 -8 -8 -8 -8 -7 -7 -7 -7 -6 -6 -6 -6 -5 -5 -4 -4 -3 ------- Run | Yrd Mat Min Sub Mat Gar Mat Gar Fac Gar Fac Gar Fac Gar Fac Gar Fac Gar Fac Gar Res Traps Triggered 66 | . . . . . . . 1 3 11 2 9 2 12 1 4 1 5 . 15 . Indirectly . | . . . . . . . . . . . . . . . . . . . . . Trap Hack Attempts . | . . . . . . . . . . . . . . . . . . . . . Triggered . | . . . . . . . . . . . . . . . . . . . . . Disarmed . | . . . . . . . . . . . . . . . . . . . . . Reprogrammed 4 | . . . . 4 . . . . . . . . . . . . . . . . Reused . | . . . . . . . . . . . . . . . . . . . . . Traps Extracted . | . . . . . . . . . . . . . . . . . . . . . Installed 5 | . . 5 . . . . . . . . . . . . . . . . . . Triggered . | . . . . . . . . . . . . . . . . . . . . . Machines | -11 -10 -10 -10 -8 -8 -8 -8 -7 -7 -7 -7 -6 -6 -6 -6 -5 -5 -4 -4 -3 ---------- Run | Yrd Mat Min Sub Mat Gar Mat Gar Fac Gar Fac Gar Fac Gar Fac Gar Fac Gar Fac Gar Res Machines Disabled 155 | . . . . 16 2 2 2 7 5 8 4 48 6 12 4 7 6 20 4 2 Max in Single Turn 9 | . . . . 2 1 . 1 2 1 3 1 7 1 7 1 1 2 9 1 1 Garrison Access 3 | . . . . . . . . 1 . 1 . 1 . . . . . . . . Garrison Relay 29 | . . . . . 2 . 2 . 5 . 4 . 5 . 4 . 4 . 3 . Phase Generator 1 | . . . . . . . . . . . . . . . . . 1 . . . Machines Repaired . | . . . . . . . . . . . . . . . . . . . . . Machines Dismantled . | . . . . . . . . . . . . . . . . . . . . . Machines Sabotaged . | . . . . . . . . . . . . . . . . . . . . . Overloaded Fab Kills . | . . . . . . . . . . . . . . . . . . . . . Hacking | -11 -10 -10 -10 -8 -8 -8 -8 -7 -7 -7 -7 -6 -6 -6 -6 -5 -5 -4 -4 -3 --------- Run | Yrd Mat Min Sub Mat Gar Mat Gar Fac Gar Fac Gar Fac Gar Fac Gar Fac Gar Fac Gar Res Machines Accessed 102 | . 5 . . 11 3 6 2 22 2 10 3 16 3 6 3 3 . 4 . 3 Terminals 52 | . 3 . . 6 3 3 2 5 2 3 3 10 3 1 3 2 . 2 . 1 Fabricators 8 | . . . . . . . . 3 . 1 . 2 . . . . . 1 . 1 Repair Stations 7 | . . . . 1 . . . 3 . 2 . . . 1 . . . . . . Recycling Units 15 | . 2 . . 2 . 1 . 5 . 1 . 1 . 2 . . . . . 1 Scanalyzers 8 | . . . . 1 . 1 . 3 . 1 . 1 . 1 . . . . . . Garrison Access 12 | . . . . 1 . 1 . 3 . 2 . 2 . 1 . 1 . 1 . . Total Hacks 208 | . 9 . . 41 6 11 3 48 2 19 4 25 6 13 6 5 . 4 . 6 Successful 100 | . 4 . . 23 1 6 2 21 2 12 1 12 . 9 3 1 . 2 . 1 Failed 106 | . 5 . . 17 5 5 1 26 . 7 3 13 6 4 3 4 . 2 . 5 Catastrophic 19 | . . . . 1 2 1 . 5 . 2 1 2 . 1 1 1 . 2 . . Database Lockouts 2 | . . . . 1 . . . 1 . . . . . . . . . . . . Manual 62 | . 3 . . 14 3 5 . 18 . 8 . 6 . 1 1 . . 2 . 1 Terminals 110 | . 5 . . 20 6 5 3 15 2 9 4 18 6 2 6 4 . 2 . 3 Fabricators 10 | . . . . . . . . 4 . 1 . 3 . . . . . 1 . 1 Repair Stations 20 | . . . . 3 . . . 8 . 3 . . . 6 . . . . . . Recycling Units 27 | . 4 . . 5 . 1 . 10 . 2 . 1 . 2 . . . . . 2 Scanalyzers 24 | . . . . 10 . 2 . 7 . 2 . 1 . 2 . . . . . . Garrison Access 17 | . . . . 3 . 3 . 4 . 2 . 2 . 1 . 1 . 1 . . Terminal Hacks 29 | . 1 . . 7 1 2 2 4 2 2 1 5 . . 2 . . . . . Robot Schematic 1 | . . . . . . . . . . . . 1 . . . . . . . . Prototype ID Bank 5 | . . . . 3 . 1 . . . . . 1 . . . . . . . . Open Door 4 | . . . . . 1 . . . 1 . 1 . . . 1 . . . . . Emergency Access Points 3 | . . . . . . . 1 . 1 . . . . . 1 . . . . . Terminal Index 1 | . . . . . . . . . . . . 1 . . . . . . . . Scanalyzer Index 1 | . . . . . . . . 1 . . . . . . . . . . . . Alert Level 1 | . . . . 1 . . . . . . . . . . . . . . . . Unreport Threat 6 | . . . . 1 . . . 1 . 2 . 2 . . . . . . . . Locate Traps 2 | . . . . 1 . . . 1 . . . . . . . . . . . . Reprogram Traps 1 | . . . . 1 . . . . . . . . . . . . . . . . Security Status 1 | . . . . . . 1 . . . . . . . . . . . . . . Hauler Manifests 1 | . 1 . . . . . . . . . . . . . . . . . . . Zone Layout 1 | . . . . . . . . 1 . . . . . . . . . . . . Security Stations 1 | . . . . . . . 1 . . . . . . . . . . . . . Fabricator Hacks 1 | . . . . . . . . 1 . . . . . . . . . . . . Build 1 | . . . . . . . . 1 . . . . . . . . . . . . Repair Station Hacks 12 | . . . . 2 . . . 4 . 2 . . . 4 . . . . . . Scan Component 6 | . . . . 1 . . . 2 . 1 . . . 2 . . . . . . Repair 6 | . . . . 1 . . . 2 . 1 . . . 2 . . . . . . Recycling Unit Hacks 11 | . 2 . . 2 . 1 . 2 . 1 . 1 . 2 . . . . . . Retrieve Components 11 | . 2 . . 2 . 1 . 2 . 1 . 1 . 2 . . . . . . Scanalyzer 13 | . . . . 6 . 2 . 1 . 2 . 1 . 1 . . . . . . Retrieve Study 13 | . . . . 6 . 2 . 1 . 2 . 1 . 1 . . . . . . Garrison Access Hacks 13 | . . . . 1 . 1 . 4 . 2 . 2 . 1 . 1 . 1 . . Unlock Access 10 | . . . . 1 . 1 . 3 . 1 . 1 . 1 . 1 . 1 . . Seal Access 3 | . . . . . . . . 1 . 1 . 1 . . . . . . . . Unauthorized Hacks 21 | . 1 . . 5 . . . 5 . 3 . 3 . 1 1 . . 1 . 1 Terminals 12 | . 1 . . 4 . . . 3 . 1 . 1 . 1 1 . . . . . Botnet 11 | . 1 . . 3 . . . 3 . 1 . 1 . 1 1 . . . . . Disrupt 1 | . . . . 1 . . . . . . . . . . . . . . . . Fabricators 5 | . . . . . . . . . . 1 . 2 . . . . . 1 . 1 Liberate 5 | . . . . . . . . . . 1 . 2 . . . . . 1 . 1 Repair Stations 3 | . . . . . . . . 2 . 1 . . . . . . . . . . Mechanics 2 | . . . . . . . . 1 . 1 . . . . . . . . . . Patch 1 | . . . . . . . . 1 . . . . . . . . . . . . Recycling Units . | . . . . . . . . . . . . . . . . . . . . . Scanalyzers . | . . . . . . . . . . . . . . . . . . . . . Garrison Access 1 | . . . . 1 . . . . . . . . . . . . . . . . Restock 1 | . . . . 1 . . . . . . . . . . . . . . . . Data Cores Recovered 2 | . . . . . . . . . . 1 . 1 . . . . . . . . Used 2 | . . . . . . . . . . 1 . 1 . . . . . . . . Hacking Detections 70 | . 4 . . 5 2 3 2 16 2 5 2 12 3 4 1 3 . 4 . 2 Full Trace Events 3 | . . . . . 1 . . 1 . . . . 1 . . . . . . . Feedback Events 1 | . . . . . . . . 1 . . . . . . . . . . . . Corruption 1 | . . . . . . . . 1 . . . . . . . . . . . . Feedback Blocked . | . . . . . . . . . . . . . . . . . . . . . Robot Schematics Acquired 1 | . . . . . . . . . . . . 1 . . . . . . . . Robots Built . | . . . . . . . . . . . . . . . . . . . . . Authchips . | . . . . . . . . . . . . . . . . . . . . . Time . | . . . . . . . . . . . . . . . . . . . . . Total Robot Build Rating . | . . . . . . . . . . . . . . . . . . . . . Part Schematics Acquired . | . . . . . . . . . . . . . . . . . . . . . Parts Built 2 | . . . . . . . . 2 . . . . . . . . . . . . Authchips . | . . . . . . . . . . . . . . . . . . . . . Time 42 | . . . . . . . . 42 . . . . . . . . . . . . Total Part Build Rating 8 | . . . . . . . . 8 . . . . . . . . . . . . Part Studies Acquired 12 | . . . . 6 . 2 . 1 . 1 . 1 . 1 . . . . . . Parts Repaired 5 | . . . . . . . . 2 . 1 . . . 2 . . . . . . Time 301 | . . . . 32 . . . 98 . 38 . . . 133 . . . . . . Parts Recycled . | . . . . . . . . . . . . . . . . . . . . . Recycled Matter . | . . . . . . . . . . . . . . . . . . . . . Retrieved Matter . | . . . . . . . . . . . . . . . . . . . . . Retrieved Components 37 | . . . . 10 . 9 . 3 . . . 3 . 12 . . . . . . Parts Scanalyzed . | . . . . . . . . . . . . . . . . . . . . . Part Schematics Acquired . | . . . . . . . . . . . . . . . . . . . . . Parts Damaged . | . . . . . . . . . . . . . . . . . . . . . Bothacking | -11 -10 -10 -10 -8 -8 -8 -8 -7 -7 -7 -7 -6 -6 -6 -6 -5 -5 -4 -4 -3 ------------ Run | Yrd Mat Min Sub Mat Gar Mat Gar Fac Gar Fac Gar Fac Gar Fac Gar Fac Gar Fac Gar Res Used RIF Installer 9 | . . . . . 1 . 2 . 1 . 1 . 1 . 1 . 1 . 1 . Hotswap 1 | . . . . . . . . . . . . . 1 . . . . . . . Threat Obfuscator 2 | . . . . . . . 1 . . . 1 . . . . . . . . . Signal Jammer 1 | . . . . . . . . . . . . . . . . . . . 1 . Zone Cloak 1 | . . . . . . . 1 . . . . . . . . . . . . . Watcher Feeds 1 | . . . . . . . . . . . . . . . . . 1 . . . Patrol Navigation 1 | . . . . . . . . . . . . . . . 1 . . . . . Program Shield 1 | . . . . . . . . . 1 . . . . . . . . . . . Robots Hacked 131 | . . . . . . 1 . 7 6 11 10 11 11 4 13 15 17 12 4 9 Non-combat 35 | . . . . . . 1 . 3 . 7 . 5 . 4 1 7 . 4 . 3 Combat 96 | . . . . . . . . 4 6 4 10 6 11 . 12 8 17 8 4 6 Robot Hacks Applied 148 | . . . . . . 2 . 9 6 14 10 11 11 5 15 17 18 14 5 11 parse_system 14 | . . . . . . . . 1 . . 1 . 1 . 3 1 . . 1 6 drop_inventory 12 | . . . . . . . . 1 . 1 . 2 . 2 . 3 . 2 . 1 purge_threat 6 | . . . . . . 1 . . . 2 . . . 1 . . . 2 . . block_reporting 1 | . . . . . . . . . . . . . . 1 . . . . . . map_route 1 | . . . . . . . . . . . . 1 . . . . . . . . redirect_shields 4 | . . . . . . . . 2 . 1 . . . . . 1 . . . . emergency_deploy 2 | . . . . . . . . . 1 . 1 . . . . . . . . . scatter_targeting 2 | . . . . . . . . . 1 . 1 . . . . . . . . . amplify_resonance 8 | . . . . . . . . 2 . . . . 2 . 1 2 1 . . . overwrite_iff 26 | . . . . . . . . 1 2 . 1 . 2 . 5 3 7 2 2 1 formatsys_low 10 | . . . . . . 1 . . . 5 . . . 1 . . . 2 . 1 formatsys_high 61 | . . . . . . . . 2 2 5 6 8 6 . 6 7 10 5 2 2 formatsys_deep 1 | . . . . . . . . . . . . . . . . . . 1 . . Relay Couplers Released 133 | . . . . 4 7 . 8 . 20 7 20 . 20 . 18 . 20 . 9 . Machine Destruction 115 | . . . . . 7 . 8 . 20 . 16 . 20 . 18 . 17 . 9 . Programmers 18 | . . . . 4 . . . . . 7 4 . . . . . 3 . . . Attached 46 | . . . . . . 1 . 2 3 6 5 5 5 1 5 1 8 . 2 2 Fabnet Peak Effective % . | . . . . . . . . . . . . . . . . . . . . . Robots Rewired 31 | . . . . . 7 . . . 4 . 3 1 7 . 6 . . . 3 . Allies Hacked 4 | . . . . . . . . . . . . . . 1 . 1 . . . 2 Hacks Repelled . | . . . . . . . . . . . . . . . . . . . . . Allies | -11 -10 -10 -10 -8 -8 -8 -8 -7 -7 -7 -7 -6 -6 -6 -6 -5 -5 -4 -4 -3 -------- Run | Yrd Mat Min Sub Mat Gar Mat Gar Fac Gar Fac Gar Fac Gar Fac Gar Fac Gar Fac Gar Res Total Allies 144 | . . 4 . . 7 1 . 3 8 9 12 9 19 1 19 9 16 14 9 4 Largest Group 16 | . . 4 3 . 4 4 2 1 5 6 11 12 14 9 16 16 7 7 7 5 Highest-Rated Group 746 | . . 71 40 . 120 130 50 40 134 222 305 330 573 331 707 746 272 364 364 214 Highest-Rated Ally 108 | . . 31 16 . 40 40 40 40 32 108 90 90 95 62 104 104 49 56 62 64 Total Orders 10 | . . . . . . . . . . 2 2 1 2 . 1 . . 1 . 1 STAY 1 | . . . . . . . . . . . . . 1 . . . . . . . FOLLOW 1 | . . . . . . . . . . . . . 1 . . . . . . . AID 7 | . . . . . . . . . . 2 2 1 . . . . . 1 . 1 COLLECT 1 | . . . . . . . . . . . . . . . 1 . . . . . Ally Attacks 1140 | . . . 7 . 20 32 1 17 26 106 56 152 65 68 108 168 84 70 82 78 Total Damage 32265 | . . . 81 . 637 741 17 270 520 2354 1166 2811 2137 1802 3817 6040 1869 2841 3292 1870 Kills 220 | . . . . . 4 11 . 3 7 17 10 25 15 19 22 36 12 14 15 10 Allies Corrupted 5 | . . . . . . . . 1 . . . 1 . . . 1 . 1 1 . Allies Melted 1 | . . . . . . . . . 1 . . . . . . . . . . . Intel | -11 -10 -10 -10 -8 -8 -8 -8 -7 -7 -7 -7 -6 -6 -6 -6 -5 -5 -4 -4 -3 ------- Run | Yrd Mat Min Sub Mat Gar Mat Gar Fac Gar Fac Gar Fac Gar Fac Gar Fac Gar Fac Gar Res Active Infowar (turns) 4937 | . . 1 . 2260 2293 383 . . . . . . . . . . . . . . Optics 4936 | . . . . 2260 2293 383 . . . . . . . . . . . . . . Sensors 1 | . . 1 . . . . . . . . . . . . . . . . . . Robot Analysis Total . | . . . . . . . . . . . . . . . . . . . . . Derelict Logs Recovered 3 | . . 1 2 . . . . . . . . . . . . . . . . . Drone Launches . | . . . . . . . . . . . . . . . . . . . . . Drone Recoveries . | . . . . . . . . . . . . . . . . . . . . . Exploration | -11 -10 -10 -10 -8 -8 -8 -8 -7 -7 -7 -7 -6 -6 -6 -6 -5 -5 -4 -4 -3 ------------- Run | Yrd Mat Min Sub Mat Gar Mat Gar Fac Gar Fac Gar Fac Gar Fac Gar Fac Gar Fac Gar Res Turns Passed 33556 | 43 339 1060 876 2285 2293 1354 584 2894 2021 2399 1594 2347 1943 1246 1747 1171 2733 1374 2018 1235 Spaces Moved 17376 | 36 240 647 494 1072 1157 680 259 1328 994 1338 950 1543 1125 765 1049 588 1036 567 998 510 Core 5 | 4 . . . . . . . . . . . . . . . . . 1 . . Treads 5416 | . . 515 494 1072 1157 680 259 1235 . . . . . . . . . 3 1 . Legs 904 | . . . . . . . . . . . . . . . . . 729 175 . . Wheels 11051 | 32 240 132 . . . . . 93 994 1338 950 1543 1125 765 1049 588 307 388 997 510 Hover . | . . . . . . . . . . . . . . . . . . . . . Flight . | . . . . . . . . . . . . . . . . . . . . . Fastest Speed 50 | 50 90 95 160 155 170 170 170 145 100 115 125 125 135 130 130 130 130 105 105 120 Average Speed 151 | 80 90 149 160 160 170 170 170 163 149 148 125 133 135 132 130 130 231 172 140 140 Slowest Speed 2250 | 100 100 160 240 170 170 170 170 225 175 265 125 165 135 260 130 130 470 2250 640 180 Overloaded Moves . | . . . . . . . . . . . . . . . . . . . . . Propulsion Burnouts . | . . . . . . . . . . . . . . . . . . . . . Robots Hopped . | . . . . . . . . . . . . . . . . . . . . . Potential Cave-ins . | . . . . . . . . . . . . . . . . . . . . . Cave-ins Triggered . | . . . . . . . . . . . . . . . . . . . . . Exploration Rate (%) 56 | 3 50 97 37 84 87 40 62 46 94 36 71 51 99 29 94 18 91 19 69 19 Regions Visited 20 Branch Regions 2 Pre-discovered Areas . | . . . . . . . . . . . . . . . . . . . . . Known Exits Taken 9 | . . . 1 1 . 1 . 1 . 1 . 1 . 1 . 1 . 1 . . Unknown Exits Taken 3 | 1 1 1 . . . . . . . . . . . . . . . . . . Scrap Searched 9 | . . 1 8 . . . . . . . . . . . . . . . . . Spaces Dug 295 | . . . 6 5 101 . . 2 4 5 1 1 43 30 46 7 . . 37 7 Terrain Destroyed 1560 | . . . 67 75 238 . 13 66 15 35 8 150 298 73 185 33 90 127 45 42 Melee . | . . . . . . . . . . . . . . . . . . . . . Projectile 292 | . . . . 32 1 . . 12 9 23 8 14 19 3 14 33 15 22 45 42 AOE 1268 | . . . 67 43 237 . 13 54 6 12 . 136 279 70 171 . 75 105 . . Terrain Rammed . | . . . . . . . . . . . . . . . . . . . . . Walls Destroyed . | . . . . . . . . . . . . . . . . . . . . . Machines Disabled . | . . . . . . . . . . . . . . . . . . . . . Actions | -11 -10 -10 -10 -8 -8 -8 -8 -7 -7 -7 -7 -6 -6 -6 -6 -5 -5 -4 -4 -3 --------- Run | Yrd Mat Min Sub Mat Gar Mat Gar Fac Gar Fac Gar Fac Gar Fac Gar Fac Gar Fac Gar Res Total 22037 | 47 296 711 541 1433 1352 782 328 1738 1348 1622 1292 1739 1419 964 1328 839 1256 799 1375 828 Wait 1723 | . 16 21 9 153 56 28 21 165 70 140 218 74 74 151 138 110 29 80 66 104 Move 17362 | 35 239 646 493 1071 1156 679 258 1328 993 1338 949 1543 1124 765 1048 588 1035 567 997 510 Hop . | . . . . . . . . . . . . . . . . . . . . . Pick Up 207 | 8 3 3 5 24 5 4 2 13 35 5 9 6 10 2 2 5 32 11 14 9 Fast Attach 130 | 4 2 3 . 15 1 . 2 14 8 14 4 8 2 2 3 1 8 20 5 14 Attach 96 | . 2 1 3 6 . 1 . 4 4 6 1 5 2 . 1 7 14 9 15 15 Detach 13 | . . 1 . . . . . . . . . . . . . . . 2 5 5 Swap 202 | . . 4 4 26 8 11 5 40 10 9 3 9 16 10 11 1 4 1 11 19 Drop 203 | . 1 3 . 38 5 10 5 21 36 11 4 9 10 3 5 2 9 9 8 14 Fire 1682 | . 33 21 27 100 78 46 35 151 120 95 54 77 108 23 86 124 93 99 178 134 Melee . | . . . . . . . . . . . . . . . . . . . . . Ram 4 | . . . . . . . . . . . . . 1 . . 1 . . 1 1 Kick 1 | . . . . . . . . . . . . . . . . . 1 . . . Crush 9 | . . 3 . . 1 3 . 2 . . . . . . . . . . . . Escape Stasis 334 | . . . . . . . . . 72 4 48 8 72 8 32 . 27 . 63 . Rewire 66 | . . . . . 42 . . . . . 2 . . . 2 . 4 1 12 3 Trap 5 | . . 5 . . . . . . . . . . . . . . . . . . Miscellaneous . | . . . . . . . . . . . . . . . . . . . . . Route ------- -11/Scrapyard -10/Materials (discovered 2 exits: [*Mat] / [*Min]) -10/Mines (discovered 3 exits: [*Mat x2] / [*Sub]) -10/Subcaves -8/Materials (discovered 4 exits: *Fac x2 / Sto / Gar) -8/Garrison (discovered 3 exits: *Mat x3) -8/Materials (discovered 3 exits: *Fac / *Sto / Gar) -8/Garrison -7/Factory (discovered 4 exits: *Fac x2 / Gar / Gar) -7/Garrison (discovered 3 exits: *Fac x3) -7/Factory (discovered 3 exits: *Fac / [*Low] / Gar) -7/Garrison (discovered 4 exits: *Fac x3 / [*Fac]) -6/Factory (discovered 4 exits: *Fac x3 / Gar) -6/Garrison (discovered 4 exits: *Fac x3 / *Fac) -6/Factory (discovered 2 exits: [*Low] / Gar) -6/Garrison (discovered 3 exits: *Fac x3) -5/Factory -5/Garrison (discovered 3 exits: *Fac x3) -4/Factory -4/Garrison (discovered 3 exits: *Res x3) -3/Research (discovered 1 exit: [*Res]) History --------- Turn | Location | Event 26 | -11/Scrapyard | Discovered new exit (range 15) 44 | -11/Scrapyard | Entered Materials 158 | -10/Materials | Discovered new exit (range 12) 304 | -10/Materials | Discovered new exit (range 10) 332 | -10/Materials | Build established: Mutant 383 | -10/Materials | Entered Mines 409 | -10/Mines | Discovered new exit (range 10) 653 | -10/Mines | Found a damaged Exp. Sensor Array with a note attached 656 | -10/Mines | Found Prototype Device 656 | -10/Mines | Identified Exp. Sensor Array 743 | -10/Mines | Received a Rocket Launcher from a helpful Derelict 782 | -10/Mines | Found a hidden stash of uninstalled traps 883 | -10/Mines | Discovered new exit (range 7) 1029 | -10/Mines | Assisted by bots powering up and referring to "LRC-V3" 1139 | -10/Mines | Received a Mining Laser from a helpful Derelict 1419 | -10/Mines | Discovered new exit (range 10) 1443 | -10/Mines | Entered Subcaves 1443 | -10/Subcaves | Accompanied by 3 allies 1448 | -10/Subcaves | Learned Materials trap positions 1551 | -10/Subcaves | Core integrity fell below 50% 1555 | -10/Subcaves | Shifting Twisted Machinery released Sub. Laser 1574 | -10/Subcaves | Shifting Twisted Machinery released Battle Rifle 1804 | -10/Subcaves | Identified exit to Materials 1905 | -10/Subcaves | Disturbed a concealed Subdweller 2132 | -10/Subcaves | Disturbed a concealed Subdweller 2319 | -10/Subcaves | Entered Materials 2319 | -8/Materials | Evolved 4 slots: Propulsion x1, Utility x2, Weapon x1 2320 | -8/Materials | Identified exit to Storage 2321 | -8/Materials | Loaded intel: 16 trap records 2648 | -8/Materials | Build established: Skirmisher 3280 | -8/Materials | Build established: Scavenger-Skirmisher 3617 | -8/Materials | Build established: Skirmisher 3709 | -8/Materials | Discovered new exit (range 17) 3904 | -8/Materials | Discovered new exit (range 12) 4209 | -8/Materials | Garrison activated, responded to threat 4252 | -8/Materials | Build established: Tank 4447 | -8/Materials | Central database locked down 4497 | -8/Materials | Identified exit to Garrison 4556 | -8/Materials | Garrison activated, responded to threat 4604 | -8/Materials | Entered Garrison 4628 | -8/Garrison | Triggered checkpoint 4674 | -8/Garrison | Triggered checkpoint 4892 | -8/Garrison | Triggered checkpoint 5060 | -8/Garrison | Discovered new exit (range 12) 5118 | -8/Garrison | Triggered checkpoint 5456 | -8/Garrison | Triggered checkpoint 5482 | -8/Garrison | Destroyed 7 combat bots 5576 | -8/Garrison | Triggered checkpoint 5665 | -8/Garrison | Discovered new exit (range 17) 5668 | -8/Garrison | Triggered checkpoint 5854 | -8/Garrison | Triggered checkpoint 5855 | -8/Garrison | Core integrity fell below 50% 5988 | -8/Garrison | Discovered new exit (range 12) 6114 | -8/Garrison | Triggered checkpoint 6562 | -8/Garrison | Installed Relay Interface Framework 6632 | -8/Garrison | Garrison Relay disabled 6897 | -8/Garrison | Entered Materials 6897 | -8/Materials | Accompanied by 3 allies 7081 | -8/Materials | Build established: Bothacker-Tank 7121 | -8/Materials | Discovered exit to Storage (range 6) 7627 | -8/Materials | Identified exit to Garrison 7691 | -8/Materials | Discovered new exit (range 16) 8251 | -8/Materials | Entered Garrison 8251 | -8/Garrison | Accompanied by 2 allies 8267 | -8/Garrison | Expanded RIF knowledge: Zone Cloak 8309 | -8/Garrison | Triggered checkpoint 8330 | -8/Garrison | Garrison Relay disabled 8390 | -8/Garrison | Triggered checkpoint 8444 | -8/Garrison | Destroyed 7 combat bots 8449 | -8/Garrison | Triggered checkpoint 8515 | -8/Garrison | Discovered new exit (range 13) 8577 | -8/Garrison | Expanded RIF knowledge: Threat Obfuscation 8619 | -8/Garrison | Learned Factory security intel 8639 | -8/Garrison | Triggered checkpoint 8668 | -8/Garrison | Garrison Relay disabled 8835 | -8/Garrison | Entered Factory 8835 | -7/Factory | Evolved 2 slots: Utility x2 9078 | -7/Factory | Discovered new exit (range 9) 9141 | -7/Factory | Repaired Arm. Treads+ 9235 | -7/Factory | First assault squad dispatched 9342 | -7/Factory | Found Rocket Array 9466 | -7/Factory | Fabricated Med. Treads (x2) 9746 | -7/Factory | Identified exit to Garrison 9895 | -7/Factory | Repaired Adv. Beam Rifle 10661 | -7/Factory | Discovered new exit (range 16) 10706 | -7/Factory | Garrison activated, responded to threat 11004 | -7/Factory | Identified exit to Garrison 11366 | -7/Factory | Central database locked down 11439 | -7/Factory | Garrison activated, responded to threat 11522 | -7/Factory | Destroyed 9 combat bots 11565 | -7/Factory | Lost 3 parts (1n2u) 11729 | -7/Factory | Identified exit to Garrison 11729 | -7/Factory | Entered Garrison 11806 | -7/Garrison | Garrison Relay disabled 11861 | -7/Garrison | Triggered checkpoint 11861 | -7/Garrison | Triggered checkpoint 11861 | -7/Garrison | Triggered checkpoint 11964 | -7/Garrison | Discovered new exit (range 12) 12013 | -7/Garrison | Triggered checkpoint 12162 | -7/Garrison | Garrison Relay disabled 12275 | -7/Garrison | Triggered checkpoint 12363 | -7/Garrison | Discovered new exit (range 12) 12422 | -7/Garrison | Core integrity fell below 50% 12427 | -7/Garrison | Triggered checkpoint 12558 | -7/Garrison | Garrison Relay disabled 12629 | -7/Garrison | Expanded RIF knowledge: Program Shield 12650 | -7/Garrison | Garrison Relay disabled 12881 | -7/Garrison | Triggered checkpoint 12921 | -7/Garrison | Build established: Botlord-Tank 12987 | -7/Garrison | Discovered new exit (range 12) 13031 | -7/Garrison | Triggered checkpoint 13156 | -7/Garrison | Garrison Relay disabled 13339 | -7/Garrison | Triggered checkpoint 13750 | -7/Garrison | Entered Factory 13750 | -7/Factory | Accompanied by 5 allies 14647 | -7/Factory | Cargo convoy interrupted 14710 | -7/Factory | Lost 3 allies 14713 | -7/Factory | Lost 5 parts (1p1n2u1w) 14925 | -7/Factory | Discovered new exit (range 14) 14966 | -7/Factory | P-70 Sage assimilated allied Smith 4b 15038 | -7/Factory | Discovered new exit (range 14) 15058 | -7/Factory | Core integrity fell below 20% 15350 | -7/Factory | Repaired Hrd. Medium Armor Plating 16141 | -7/Factory | Identified exit to Garrison 16149 | -7/Factory | Entered Garrison 16149 | -7/Garrison | Accompanied by 5 allies 16234 | -7/Garrison | Triggered checkpoint 16263 | -7/Garrison | Triggered checkpoint 16280 | -7/Garrison | Lost 3 allies 16307 | -7/Garrison | Triggered checkpoint 16337 | -7/Garrison | Rescued a captive Derelict 16338 | -7/Garrison | Rescued a captive Derelict 16374 | -7/Garrison | Garrison Relay disabled 16461 | -7/Garrison | Triggered checkpoint 16472 | -7/Garrison | Garrison Relay disabled 16526 | -7/Garrison | Discovered new exit (range 9) 16621 | -7/Garrison | Triggered checkpoint 16646 | -7/Garrison | Discovered new exit (range 5) 16842 | -7/Garrison | Discovered new exit (range 12) 16931 | -7/Garrison | Triggered checkpoint 16967 | -7/Garrison | Garrison Relay disabled 17099 | -7/Garrison | Triggered checkpoint 17187 | -7/Garrison | Discovered new exit (range 10) 17249 | -7/Garrison | Expanded RIF knowledge: Threat Obfuscation 17439 | -7/Garrison | Triggered checkpoint 17459 | -7/Garrison | Triggered checkpoint 17510 | -7/Garrison | Garrison Relay disabled 17743 | -7/Garrison | Entered Factory 17743 | -6/Factory | Accompanied by 11 allies 17743 | -6/Factory | Evolved 2 slots: Utility x2 18122 | -6/Factory | Discovered new exit (range 16) 18485 | -6/Factory | Spotted B-75 Beast 18499 | -6/Factory | Destroyed B-75 Beast 18678 | -6/Factory | Lost 3 allies 18683 | -6/Factory | Discovered new exit (range 9) 18896 | -6/Factory | Discovered new exit (range 14) 19131 | -6/Factory | Cargo convoy interrupted 19727 | -6/Factory | Lost 7 allies 19974 | -6/Factory | Lost 3 allies 20090 | -6/Factory | Identified exit to Garrison 20090 | -6/Factory | Entered Garrison 20090 | -6/Garrison | Accompanied by 1 ally 20218 | -6/Garrison | Destroyed 8 combat bots 20294 | -6/Garrison | Triggered checkpoint 20348 | -6/Garrison | Garrison Relay disabled 20474 | -6/Garrison | Triggered checkpoint 20476 | -6/Garrison | Triggered checkpoint 20500 | -6/Garrison | Triggered checkpoint 20536 | -6/Garrison | Lost 4 allies 20683 | -6/Garrison | Discovered new exit (range 12) 20712 | -6/Garrison | Triggered checkpoint 20735 | -6/Garrison | Garrison Relay disabled 21087 | -6/Garrison | Discovered new exit (range 10) 21214 | -6/Garrison | Triggered checkpoint 21254 | -6/Garrison | Triggered checkpoint 21259 | -6/Garrison | Garrison Relay disabled 21270 | -6/Garrison | Found embedded Infiltrators 21292 | -6/Garrison | Expanded RIF knowledge: Hotswap 21456 | -6/Garrison | Triggered checkpoint 21535 | -6/Garrison | Rescued a captive Derelict 21542 | -6/Garrison | Rescued a captive Derelict 21553 | -6/Garrison | Garrison Relay disabled 21668 | -6/Garrison | Discovered new exit (range 11) 21705 | -6/Garrison | Garrison Relay disabled 21764 | -6/Garrison | Triggered checkpoint 21780 | -6/Garrison | Discovered new exit (range 5) 21825 | -6/Garrison | Lost 3 allies 22033 | -6/Garrison | Entered Factory 22033 | -6/Factory | Accompanied by 8 allies 22461 | -6/Factory | Discovered new exit (range 14) 23031 | -6/Factory | Repaired Arm. Huge Wheel+ 23113 | -6/Factory | Unchained authorized (GL-D0S) 23135 | -6/Factory | Repaired Enh. Fission Core 23159 | -6/Factory | Garrison activated, responded to threat 23272 | -6/Factory | Identified exit to Garrison 23279 | -6/Factory | Entered Garrison 23279 | -6/Garrison | Accompanied by 8 allies 23297 | -6/Garrison | Triggered checkpoint 23322 | -6/Garrison | Garrison Relay disabled 23396 | -6/Garrison | Garrison Relay disabled 23473 | -6/Garrison | Spotted B-75 Beast 23516 | -6/Garrison | Lost 3 allies 23516 | -6/Garrison | Spotted B-75 Beast 23519 | -6/Garrison | Triggered checkpoint 23534 | -6/Garrison | Destroyed B-75 Beast 23534 | -6/Garrison | Triggered checkpoint 23562 | -6/Garrison | Lost 4 allies 23569 | -6/Garrison | Triggered checkpoint 23694 | -6/Garrison | Discovered new exit (range 11) 23749 | -6/Garrison | Triggered checkpoint 23869 | -6/Garrison | Found embedded Infiltrators 23937 | -6/Garrison | Triggered checkpoint 24007 | -6/Garrison | Triggered checkpoint 24119 | -6/Garrison | Triggered checkpoint 24136 | -6/Garrison | Garrison Relay disabled 24343 | -6/Garrison | Discovered new exit (range 13) 24537 | -6/Garrison | Triggered checkpoint 24554 | -6/Garrison | Garrison Relay disabled 24665 | -6/Garrison | Discovered new exit (range 10) 24695 | -6/Garrison | Expanded RIF knowledge: Patrol Navigation 24862 | -6/Garrison | Spotted B-75 Beast 24880 | -6/Garrison | Destroyed B-75 Beast 25026 | -6/Garrison | Entered Factory 25026 | -5/Factory | Accompanied by 14 allies 25026 | -5/Factory | Evolved 2 slots: Utility x2 25223 | -5/Factory | Unchained authorized (GL-D0S) 25326 | -5/Factory | First assault squad dispatched 25360 | -5/Factory | Spotted B-75 Beast 25384 | -5/Factory | Destroyed B-75 Beast 25608 | -5/Factory | Lost 3 allies 25725 | -5/Factory | Lost 6 allies 25812 | -5/Factory | Lost 7 allies 26197 | -5/Factory | Identified exit to Garrison 26197 | -5/Factory | Entered Garrison 26253 | -5/Garrison | Triggered checkpoint 26305 | -5/Garrison | Garrison Relay disabled 26329 | -5/Garrison | Triggered checkpoint 26614 | -5/Garrison | Spotted B-75 Beast 26647 | -5/Garrison | Destroyed B-75 Beast 26661 | -5/Garrison | Triggered checkpoint 26668 | -5/Garrison | Destroyed 9 combat bots 26677 | -5/Garrison | Lost 4 parts (1n1u2w) 26822 | -5/Garrison | Core integrity fell below 50% 26844 | -5/Garrison | Lost 4 parts (1p2n1w) 27007 | -5/Garrison | Triggered checkpoint 27117 | -5/Garrison | System corruption reached 10% 27199 | -5/Garrison | Build established: Botlord-Mutant 27259 | -5/Garrison | Discovered new exit (range 9) 27319 | -5/Garrison | Triggered checkpoint 27357 | -5/Garrison | Garrison Relay disabled 27426 | -5/Garrison | Expanded RIF knowledge: Watcher Feeds 27743 | -5/Garrison | Triggered checkpoint 27773 | -5/Garrison | Garrison Relay disabled 27866 | -5/Garrison | Discovered new exit (range 10) 27945 | -5/Garrison | Phase Generator disabled 28046 | -5/Garrison | Build established: Botlord-Tank 28279 | -5/Garrison | Triggered checkpoint 28329 | -5/Garrison | Garrison Relay disabled 28468 | -5/Garrison | Discovered new exit (range 9) 28930 | -5/Garrison | Entered Factory 28930 | -4/Factory | Accompanied by 5 allies 28930 | -4/Factory | Evolved 2 slots: Propulsion x1, Utility x1 29407 | -4/Factory | System corruption reached 10% 29418 | -4/Factory | Lost 5 allies 29680 | -4/Factory | First assault squad dispatched 29745 | -4/Factory | Assimilated Heavy ARC 7a with formatsys_deep 29788 | -4/Factory | Garrison activated, responded to threat 30058 | -4/Factory | Lost 11 parts (4n4u3w) 30248 | -4/Factory | Garrison activated, responded to threat 30279 | -4/Factory | Found Quantum Capacitor 30298 | -4/Factory | Identified exit to Garrison 30304 | -4/Factory | Entered Garrison 30304 | -4/Garrison | Accompanied by 7 allies 30430 | -4/Garrison | Spotted B-86 Titan 30447 | -4/Garrison | Destroyed B-86 Titan 30454 | -4/Garrison | Build established: Botlord-Gunner 30466 | -4/Garrison | Triggered checkpoint 30529 | -4/Garrison | Spotted B-86 Titan 30539 | -4/Garrison | Triggered checkpoint 30554 | -4/Garrison | Allies destroyed B-86 Titan 30606 | -4/Garrison | Triggered checkpoint 30608 | -4/Garrison | Lost 4 allies 30609 | -4/Garrison | Triggered checkpoint 30672 | -4/Garrison | Destroyed 8 combat bots 30678 | -4/Garrison | Lost 8 parts (1p2n3u2w) 30897 | -4/Garrison | Discovered new exit (range 3) 31190 | -4/Garrison | Triggered checkpoint 31289 | -4/Garrison | Garrison Relay disabled 31309 | -4/Garrison | Build established: Scavenger-Tank 31596 | -4/Garrison | Expanded RIF knowledge: Signal Jamming 31616 | -4/Garrison | Spotted B-86 Titan 31619 | -4/Garrison | Spotted B-86 Titan 31670 | -4/Garrison | Triggered checkpoint 31681 | -4/Garrison | Garrison Relay disabled 31718 | -4/Garrison | Discovered new exit (range 11) 31925 | -4/Garrison | Discovered new exit (range 10) 31992 | -4/Garrison | Found embedded Infiltrators 32046 | -4/Garrison | Triggered checkpoint 32076 | -4/Garrison | Triggered checkpoint 32322 | -4/Garrison | Entered Research 32322 | -3/Research | Accompanied by 5 allies 32322 | -3/Research | Evolved 2 slots: Power x1, Utility x1 32537 | -3/Research | Unchained authorized (QV-33N) 32572 | -3/Research | First assault squad dispatched 32715 | -3/Research | Lost 4 allies 32733 | -3/Research | Lost 3 parts (3u) 32851 | -3/Research | Lost 3 parts (1p1u1w) 32960 | -3/Research | Lost 3 parts (1p2u) 33140 | -3/Research | Discovered new exit (range 16) 33287 | -3/Research | Build established: Botlord-Tank 33329 | -3/Research | System corruption reached 10% 33407 | -3/Research | Lost 3 parts (2u1w) 33557 | -3/Research | Self-destructed Last Messages --------------- 33538_ Destroyed Unknown Energy Gun. 33538_ P-80 Master destroyed. 33543_ >> Watcher Feeds: Established visual feed link with W-44 Eye. 33545_ System corrupted: Hardcell Cannon jammed. 33549_ Dropped Arm. Huge Wheel+. 33549_ Critical hit (Burn: +50). 33550_ P-80 Master suffers critical hit (Blast). 33550_ Destroyed Sml. Battery. 33550_ P-80 Master destroyed. 33550_ Critical hit (Destroy). 33550_ Rnf. Fission Core destroyed. 33551_ Hvy. Gatling Laser destroyed. 33551_ Critical hit (Burn: +50). 33553_ System corrupted: Matter fused (-10). Thermal Drone disintegrates. 33553_ U-05 Engineer builds a Wall. Kinetic Drone disintegrates. 33556_ >> Watcher Feeds: Established visual feed link with W-44 Eye. Map ----- +----------------------------------------------------+ | ??????????????????????????# + ??? | | ????????##########????????## ##### # ??? | | ?????????! ???#######+##### #??????????? | | ????????? ! #???# # #?????????## | | ?????????? ????# # #????????? | | ??????????!! ????# """"" # #?????????#! | | ???????????! ?????# """"" # #?????????# | | ???????????! ?????# """"" + +?????????# | | ???????????? ??????# # #?????????# | | ???????????? ??????# # #?????????# | | #+###########+#################### #?????????# | | w k u% w #?????????# | | w % ########### | | t % % | | tw k k%u g%m % p R ### | | ### T#####+### u#######g######+#####k ##+### | | ??####?? ?# ## ! %*#? + + | | ??????? ! ?# ## # # # | | ??????# ?# ## ===# # # """ | | ???????# ? ?# ## ===# ![[ + + """ | | ????????#??!! ?# ## == # ![! #+#### """ | | ??????????!! ?# ########### ![! #????# | | ??????????!! ?# ## ! *# #????# | | ?????????? ## ##% [%+ #????# * | | ????????? # % # !m# #????# % | | ????????? # %# =@ ##########????# | | ????????# #=